fUST/lending_fUST_20250601
["ID","MTS","AMOUNT","RATE_DAILY","PERIOD"]
[363612010,1748785839548,-430.0,0.00016981,2]
[363612012,1748785839558,-430.0,0.00016981,2]
[363612014,1748785839567,-430.0,0.00016981,2]
[363612016,1748785839577,-430.0,0.00016981,2]
[363612018,1748785839587,-430.0,0.00016981,2]
[363612019,1748785839596,-181.14,0.00016982,2]
[363612020,1748785839605,-430.0,0.00017254,2]
[363612021,1748785839614,-430.0,0.00017254,2]
[363612022,1748785839624,-430.0,0.00017254,2]
[363612023,1748785839633,-430.0,0.00017254,2]
[363612024,1748785839642,-215.06502647,0.00017254,2]
[363612025,1748785839655,-214.93497353,0.00017254,2]
[363612026,1748785839665,-430.0,0.00017254,2]
[363612027,1748785839675,-202.77712328,0.00017254,2]
[363612028,1748785839687,-227.22287672,0.00017254,2]
[363612029,1748785839696,-430.0,0.00017255,2]
[363612030,1748785839705,-430.0,0.00017255,2]
[363612031,1748785839715,-138.67188383,0.00017255,2]
[363612032,1748785839726,-291.32811617,0.00017255,2]
[363612033,1748785839735,-430.0,0.00017255,2]
[363612034,1748785839744,-430.0,0.00017255,2]
[363612035,1748785839754,-430.0,0.00017255,2]
[363612036,1748785839763,-430.0,0.00017255,2]
[363612037,1748785839772,-244.56,0.00017255,2]
[363612038,1748785839781,-430.0,0.00017255,2]
[363612039,1748785839790,-430.0,0.00017255,2]
[363612040,1748785839799,-197.61,0.00017255,2]
[363612041,1748785839808,-386.94,0.00017255,2]
[363612042,1748785839818,-430.0,0.00017255,2]
[363612043,1748785839827,-176.81,0.00017255,2]
[363612044,1748785839837,-430.0,0.00017255,2]
[363612045,1748785839847,-430.0,0.00017255,2]
[363612046,1748785839856,-396.61,0.00017255,2]
[363612047,1748785839866,-430.0,0.00017255,2]
[363612048,1748785839875,-430.0,0.00017528,2]
[363612050,1748785839885,-430.0,0.00017528,2]
[363612052,1748785839894,-430.0,0.00017528,2]
[363612054,1748785839904,-430.0,0.00017528,2]
[363612056,1748785839915,-430.0,0.00017528,2]
[363612058,1748785839925,-430.0,0.00017528,2]
[363612060,1748785839934,-430.0,0.00017529,2]
[363612062,1748785839944,-430.0,0.00017529,2]
[363612064,1748785839955,-430.0,0.00017529,2]
[363612066,1748785839965,-430.0,0.00017529,2]
[363612068,1748785839975,-430.0,0.00017529,2]
[363612070,1748785839984,-430.0,0.00017529,2]
[363612072,1748785839998,-431.9,0.00017529,2]
[363612074,1748785840008,-430.0,0.00017529,2]
[363612077,1748785840018,-430.0,0.00017529,2]
[363612079,1748785840028,-430.0,0.00017529,2]
[363612081,1748785840038,-276.48,0.00017529,2]
[363612083,1748785840048,-355.56,0.00017529,2]
[363612085,1748785840058,-430.0,0.00017529,2]
[363612087,1748785840068,-537.96122629,0.00017802,2]
[363612089,1748785840078,-430.0,0.00017802,2]
[363612091,1748785840088,-430.0,0.00017802,2]
[363612093,1748785840099,-430.0,0.00017802,2]
[363612095,1748785840109,-430.0,0.00017802,2]
[363612097,1748785840119,-430.0,0.00017802,2]
[363612099,1748785840129,-430.0,0.00017803,2]
[363612101,1748785840139,-430.0,0.00017803,2]
[363612103,1748785840149,-430.0,0.00017803,2]
[363612105,1748785840159,-430.0,0.00017803,2]
[363612107,1748785840169,-406.48672862,0.00017803,2]
[363612109,1748785840178,-430.0,0.00017803,2]
[363612111,1748785840188,-430.0,0.00017803,2]
[363612113,1748785840201,-430.0,0.00017803,2]
[363612115,1748785840210,-430.0,0.00017803,2]
[363612117,1748785840220,-430.0,0.00017803,2]
[363612119,1748785840229,-430.0,0.00018076,2]
[363612122,1748785840240,-430.0,0.00018076,2]
[363612124,1748785840250,-430.0,0.00018076,2]
[363612126,1748785840260,-430.0,0.00018076,2]
[363612128,1748785840270,-430.0,0.00018076,2]
[363612130,1748785840282,-182.15453462,0.00018077,2]
[363612132,1748785840292,-430.0,0.00018077,2]
[363612134,1748785840302,-430.0,0.00018077,2]
[363612136,1748785840312,-388.39,0.00018077,2]
[363612138,1748785840322,-414.36,0.00018077,2]
[363612140,1748785840333,-430.0,0.00018077,2]
[363612142,1748785840343,-430.0,0.00018077,2]
[363612145,1748785840356,-569.31811942,0.00018077,2]
[363612147,1748785840366,-198.99,0.00018077,2]
[363612149,1748785840377,-430.0,0.00018077,2]
[363612151,1748785840387,-430.0,0.0001835,2]
[363612153,1748785840398,-430.0,0.0001835,2]
[363612155,1748785840410,-430.0,0.0001835,2]
[363612157,1748785840419,-430.0,0.0001835,2]
[363612159,1748785840430,-430.0,0.0001835,2]
[363612161,1748785840440,-571.68,0.00018351,2]
[363612163,1748785840450,-430.0,0.00018351,2]
[363612165,1748785840460,-430.0,0.00018351,2]
[363612167,1748785840472,-430.0,0.00018351,2]
[363612169,1748785840481,-430.0,0.00018351,2]
[363612171,1748785840490,-160.0,0.00018389,2]
[363612173,1748785840500,-160.0,0.00018389,2]
[363612175,1748785840512,-160.0,0.00018389,2]
[363612177,1748785840522,-12666.87825251,0.00018389,2]
[363612179,1748785840531,-160.0,0.00018389,2]
[363612181,1748785840540,-423.51412927,0.00018389,2]
[363612183,1748785840550,-229.3709046,0.00018389,2]
[363612185,1748785840560,-430.0,0.00018624,2]
[363612187,1748785840570,-430.0,0.00018624,2]
[363612189,1748785840580,-400.44,0.00018624,2]
[363612191,1748785840590,-430.0,0.00018624,2]
[363612192,1748785840601,-430.0,0.00018624,2]
[363612194,1748785840611,-430.0,0.00018625,2]
[363612196,1748785840621,-430.0,0.00018625,2]
[363612198,1748785840631,-430.0,0.00018625,2]
[363612200,1748785840641,-430.0,0.00018898,2]
[363612202,1748785840651,-430.0,0.00018898,2]
[363612204,1748785840661,-430.0,0.00018898,2]
[363612206,1748785840671,-430.0,0.00018898,2]
[363612208,1748785840680,-430.0,0.00018899,2]
[363612210,1748785840690,-430.0,0.00018899,2]
[363612212,1748785840699,-430.0,0.00018899,2]
[363612214,1748785840709,-154.8634235,0.000189,2]
[363612216,1748785840719,-430.0,0.00019172,2]
[363612218,1748785840729,-430.0,0.00019172,2]
[363612220,1748785840739,-430.0,0.00019172,2]
[363612222,1748785840749,-430.0,0.00019172,2]
[363612223,1748785840758,-430.0,0.00019173,2]
[363612225,1748785840769,-430.0,0.00019173,2]
[363612227,1748785840779,-407.78,0.00019173,2]
[363612229,1748785840789,-151.0,0.00019178,2]
[363612231,1748785840799,-177.182177,0.00019178,2]
[363612233,1748785840808,-156.587,0.00019233,2]
[363612235,1748785840818,-222.8689463,0.00019288,2]
[363612238,1748785840828,-430.0,0.00019446,2]
[363612239,1748785840838,-430.0,0.00019446,2]
[363612241,1748785840847,-430.0,0.00019446,2]
[363612243,1748785840858,-430.0,0.00019446,2]
[363612245,1748785840868,-430.0,0.00019447,2]
[363612247,1748785840877,-430.0,0.00019447,2]
[363612249,1748785840888,-3563.5,0.00019448,2]
[363612251,1748785840898,-159.436,0.0001956,2]
[363612268,1748785841049,-484.16,0.0001972,2]
[363612270,1748785841060,-430.0,0.0001972,2]
[363612272,1748785841070,-430.0,0.0001972,2]
[363612274,1748785841080,-430.0,0.0001972,2]
[363612276,1748785841090,-430.0,0.00019721,2]
[363612278,1748785841100,-430.0,0.00019721,2]
[363612280,1748785841110,-430.0,0.00019994,2]
[363612282,1748785841120,-392.93,0.00019994,2]
[363612284,1748785841129,-430.0,0.00019994,2]
[363612286,1748785841139,-430.0,0.00019995,2]
[363612288,1748785841148,-430.0,0.00019995,2]
[363612290,1748785841158,-500.0,0.00020067,2]
[363612292,1748785841167,-398.94978705,0.00020268,2]
[363612294,1748785841177,-430.0,0.00020268,2]
[363612296,1748785841187,-574.55,0.00020269,2]
[363612298,1748785841198,-474.89848172,0.00020269,2]
[363612300,1748785841209,-497.47,0.00020542,2]
[363612302,1748785841219,-247.58,0.000206,2]
[363612304,1748785841229,-363.9794335,0.00020986,2]
[363612306,1748785841239,-450.88,0.00021,2]
[363612308,1748785841249,-572.3927371,0.00021397,2]
[363612310,1748785841259,-198.0,0.00022,2]
[363612312,1748785841269,-158.4848398,0.00022219,2]
[363612314,1748785841281,-264.3466021,0.00022219,2]
[363612316,1748785841291,-154.200192,0.00022219,2]
[363612318,1748785841301,-176.4890519,0.00022219,2]
[363612320,1748785841311,-153.0,0.00022219,2]
[363612322,1748785841320,-572.3927371,0.00022219,2]
[363612323,1748785841329,-153.0,0.00022219,2]
[363612326,1748785841339,-158.4848398,0.00022219,2]
[363612328,1748785841351,-176.4890519,0.00022219,2]
[363612330,1748785841361,-153.0,0.00022219,2]
[363612332,1748785841371,-572.3927371,0.00022219,2]
[363612334,1748785841381,-176.4890519,0.00022219,2]
[363612336,1748785841391,-572.3927371,0.00022219,2]
[363612338,1748785841400,-158.4848398,0.00022219,2]
[363612340,1748785841409,-158.4848398,0.00022219,2]
[363612342,1748785841422,-153.0,0.00022219,2]
[363612344,1748785841432,-153.0,0.00022219,2]
[363612346,1748785841441,-176.4890519,0.00022219,2]
[363612348,1748785841450,-572.3927371,0.00022219,2]
[363612350,1748785841459,-158.4848398,0.00022219,2]
[363612351,1748785841469,-176.4890519,0.00022219,2]
[363612353,1748785841479,-572.3927371,0.00022219,2]
[363612355,1748785841488,-158.4848398,0.00022219,2]
[363612358,1748785841499,-153.0,0.00022219,2]
[363612360,1748785841509,-153.0,0.00022219,2]
[363612362,1748785841519,-176.4890519,0.00022219,2]
[363612364,1748785841529,-572.3927371,0.00022219,2]
[363612366,1748785841538,-500.0,0.00022259,2]
[363612368,1748785841548,-500.0,0.00022648,2]
[363612369,1748785841557,-500.0,0.00022648,2]
[363612371,1748785841568,-500.0,0.00022648,2]
[363612374,1748785841577,-500.0,0.00022648,2]
[363612376,1748785841587,-207.4,0.00022648,2]
[363612378,1748785841598,-500.0,0.00022648,2]
[363612379,1748785841607,-500.0,0.00022648,2]
[363612382,1748785841617,-5000.0,0.00022648,2]
[363612384,1748785841627,-500.0,0.00022648,2]
[363612386,1748785841638,-209.10279037,0.00022648,2]
[363612388,1748785841647,-1326.31399506,0.00023,2]
[363612390,1748785841657,-155.3651621,0.00023014,2]
[363612392,1748785841666,-180.44,0.00023021,3]
[363612394,1748785841676,-1443.54,0.00023031,3]
[363612396,1748785841685,-721.77,0.00023031,3]
[363612397,1748785841695,-360.88,0.00023031,3]
[363612399,1748785841704,-541.35,0.00023031,3]
[363612401,1748785841714,-158.4848398,0.00023041,2]
[363612403,1748785841724,-176.4890519,0.00023041,2]
[363612405,1748785841734,-572.3927371,0.00023041,2]
[363612407,1748785841744,-158.4848398,0.00023041,2]
[363612410,1748785841755,-153.0,0.00023041,2]
[363612412,1748785841765,-176.4890519,0.00023041,2]
[363612414,1748785841775,-572.3927371,0.00023041,2]
[363612416,1748785841785,-153.0,0.00023041,2]
[363612418,1748785841795,-5000.0,0.00023196,2]
[363612420,1748785841805,-2227.0,0.00023292,2]
[363612422,1748785841815,-708.0,0.00023292,2]
[363612424,1748785841825,-151.0,0.000233,8]
[363612426,1748785841835,-1316.941984,0.00023324,3]
[363612428,1748785841845,-247.58,0.000234,7]
[363612430,1748785841855,-151.0,0.000235,9]
[363612432,1748785841865,-3695.69825899,0.00023562,2]
[363612434,1748785841875,-175.91811029,0.00023596,2]
[363612436,1748785841884,-151.0,0.000236,10]
[363612438,1748785841895,-515.83918942,0.00023698,2]
[363612440,1748785841905,-500.0,0.00023698,2]
[363612442,1748785841915,-805.36521939,0.00023698,2]
[363612444,1748785841924,-805.36521939,0.00023698,2]
[363612446,1748785841933,-805.36521939,0.00023698,2]
[363612448,1748785841943,-805.36521939,0.00023698,2]
[363612450,1748785841952,-805.36521939,0.00023698,2]
[363612452,1748785841962,-805.36521939,0.00023698,2]
[363612454,1748785841972,-805.36521939,0.00023698,2]
[363612456,1748785841981,-805.36521939,0.00023698,2]
[363612458,1748785841992,-805.36521939,0.00023698,2]
[363612460,1748785842002,-535.5427426,0.00023698,2]
[363612462,1748785842011,-805.36521939,0.00023698,2]
[363612464,1748785842020,-805.36521939,0.00023698,2]
[363612466,1748785842029,-805.36521939,0.00023698,2]
[363612468,1748785842039,-500.0,0.00023698,2]
[363612470,1748785842049,-500.0,0.00023698,2]
[363612472,1748785842059,-805.36521939,0.00023698,2]
[363612474,1748785842069,-500.0,0.00023698,2]
[363612476,1748785842079,-805.36521939,0.00023698,2]
[363612478,1748785842089,-805.36521939,0.00023698,2]
[363612480,1748785842099,-805.36521939,0.00023698,2]
[363612482,1748785842108,-842.5625,0.000237,3]
[363612484,1748785842117,-153.0,0.000237,31]
[363612486,1748785842127,-153.0,0.000237,31]
[363612488,1748785842137,-153.0,0.000237,31]
[363612490,1748785842147,-153.0,0.000237,31]
[363612492,1748785842156,-153.0,0.000237,31]
[363612493,1748785842166,-153.0,0.000237,31]
[363612496,1748785842177,-153.0,0.000237,31]
[363612498,1748785842188,-153.0,0.000237,31]
[363612500,1748785842202,-153.0,0.000237,31]
[363612502,1748785842215,-153.0,0.000237,31]
[363612504,1748785842225,-153.0,0.000237,31]
[363612506,1748785842235,-153.0,0.000237,31]
[363612508,1748785842245,-153.0,0.000237,31]
[363612509,1748785842255,-153.0,0.000237,31]
[363612511,1748785842265,-160.0,0.000237,3]
[363612513,1748785842275,-175.91811029,0.000237,2]
[363612515,1748785842286,-12666.87825251,0.000237,3]
[363612517,1748785842297,-423.51412927,0.000237,3]
[363612518,1748785842307,-229.3709046,0.000237,3]
[363612519,1748785842318,-1740.08153913,0.0002375,2]
[363612520,1748785842328,-193.30573625,0.00023752,2]
[363612521,1748785842337,-1740.08153913,0.00023756,2]
[363612522,1748785842349,-339.88545409,0.00023773,2]
[363612523,1748785842360,-649.21402904,0.00023773,2]
[363612525,1748785842370,-158.71073349,0.00023773,2]
[363612528,1748785842382,-499.08564506,0.00023773,2]
[363612529,1748785842392,-188.77363041,0.00023773,2]
[363612531,1748785842403,-259.80650372,0.00023773,2]
[363612534,1748785842413,-503.74229724,0.00023773,2]
[363612536,1748785842423,-882.01,0.00023789,10]
[363612538,1748785842434,-160.0,0.000238,3]
[363612540,1748785842451,-10807.55566456,0.000238,3]
[363612542,1748785842461,-92436.04660888,0.000238,2]
[363612544,1748785842470,-402674.15818307,0.000238,7]
[363612577,1748785842790,-23370.47982946,0.000238,7]
[363612586,1748785842871,-430.0,0.00017528,2]
[363612589,1748785842883,-430.0,0.00017802,2]
[363612591,1748785842894,-430.0,0.00018076,2]
[363612593,1748785842905,-430.0,0.0001835,2]
[363612595,1748785842915,-375.03,0.00018624,2]
[363612597,1748785842925,-430.0,0.00018625,2]
[363612599,1748785842936,-430.0,0.00018899,2]
[363612601,1748785842946,-150.0,0.000189,2]
[363612603,1748785842956,-430.0,0.00019173,2]
[363612605,1748785842966,-430.0,0.00019447,2]
[363612607,1748785842977,-430.0,0.00019721,2]
[363612608,1748785842987,-37852.97,0.000238,7]
[363612611,1748785842999,-1870.17393402,0.000238,7]
[363613850,1748786192393,302.09230091,0.00024658,120]
[363613851,1748786258758,307.518744,0.00013699,2]
[363613856,1748786380039,-5000.0,0.00016374,2]
[363613862,1748786739139,-4686.30516195,0.00016537,2]
[363613865,1748786776148,2196.0,0.00024657,120]
[363613866,1748786827083,-1576.05410916,0.00016372,2]
[363613867,1748786836100,-2681.1803608,0.00016372,2]
[363613868,1748786836123,-1152.0,0.00016704,2]
[363613869,1748786836147,-300.0,0.00016705,2]
[363613870,1748786836169,-300.0,0.00016705,2]
[363613872,1748786836191,-300.0,0.00016705,2]
[363613873,1748786836214,-430.0,0.00016706,2]
[363613874,1748786836239,-430.0,0.00016706,2]
[363613875,1748786836263,-430.0,0.00016706,2]
[363613876,1748786836286,-430.0,0.00016706,2]
[363613877,1748786836308,-325.73203113,0.00016706,2]
[363613880,1748786957127,-104.26796887,0.00016706,2]
[363613881,1748786957149,-430.0,0.00016706,2]
[363613882,1748786957170,-430.0,0.00016706,2]
[363613883,1748786957190,-531.57,0.00016706,2]
[363613884,1748786957211,-430.0,0.00016706,2]
[363613885,1748786957232,-430.0,0.00016706,2]
[363613886,1748786957253,-430.0,0.00016706,2]
[363613887,1748786957275,-430.0,0.00016706,2]
[363613888,1748786957299,-17.99364021,0.00016706,2]
[363613891,1748786981222,1500.0,0.00021918,60]
[363614046,1748787037839,-412.00635979,0.00016706,2]
[363614047,1748787037850,-430.0,0.00016706,2]
[363614048,1748787037860,-216.29364021,0.00016706,2]
[363614049,1748787037873,-213.70635979,0.00016706,2]
[363614050,1748787037883,-259.04574517,0.00016706,2]
[363614051,1748787037893,-430.0,0.00016706,2]
[363614052,1748787037903,-430.0,0.00016978,2]
[363614053,1748787037914,-175.56753996,0.00016978,2]
[363614054,1748787037948,-254.43246004,0.00016978,2]
[363614055,1748787037958,-430.0,0.00016978,2]
[363614056,1748787037968,-430.0,0.00016978,2]
[363614057,1748787037978,-430.0,0.00016978,2]
[363614058,1748787037988,-313.21211109,0.00016978,2]
[363614059,1748787038000,-430.0,0.00016978,2]
[363614060,1748787038009,-188.49663862,0.00016979,2]
[363614061,1748787038019,-430.0,0.00016979,2]
[363614062,1748787038029,-430.0,0.00016979,2]
[363614063,1748787038039,-562.57,0.00016979,2]
[363614064,1748787038048,-430.0,0.00016979,2]
[363614065,1748787038058,-430.0,0.00016979,2]
[363614066,1748787038068,-430.0,0.00016979,2]
[363614067,1748787038078,-394.46,0.00016979,2]
[363614068,1748787038094,-177.68,0.00016979,2]
[363614069,1748787038103,-430.0,0.00016979,2]
[363614070,1748787038113,-430.0,0.00016979,2]
[363614071,1748787038123,-484.32761816,0.00016979,2]
[363614072,1748787038133,-500.0,0.00016979,2]
[363614073,1748787038143,-429.23876083,0.00016979,2]
[363614074,1748787038153,-430.0,0.00016979,2]
[363614075,1748787038165,-430.0,0.00016979,2]
[363614076,1748787038176,-481.95315985,0.00016979,2]
[363614077,1748787038185,-430.0,0.00016979,2]
[363614078,1748787038195,-30.7901076,0.00016979,2]
[363614079,1748787038215,-399.2098924,0.00016979,2]
[363614080,1748787038225,-430.0,0.00016979,2]
[363614081,1748787038235,-563.61,0.00016979,2]
[363614082,1748787038246,-430.0,0.00016979,2]
[363614083,1748787038255,-430.0,0.00016979,2]
[363614084,1748787038265,-430.0,0.00016979,2]
[363614085,1748787038275,-489.56,0.00016979,2]
[363614086,1748787038284,-430.0,0.00016979,2]
[363614087,1748787038294,-430.0,0.00016979,2]
[363614088,1748787038304,-430.0,0.00016979,2]
[363614089,1748787038314,-284.14911004,0.00016979,2]
[363614090,1748787038324,-430.0,0.00016979,2]
[363614091,1748787038334,-430.0,0.00016979,2]
[363614092,1748787038343,-430.0,0.00016979,2]
[363614093,1748787038353,-430.0,0.00016979,2]
[363614094,1748787038363,-531.57,0.0001698,2]
[363614095,1748787038373,-430.0,0.0001698,2]
[363614096,1748787038382,-430.0,0.0001698,2]
[363614097,1748787038392,-430.0,0.00017252,2]
[363614098,1748787038403,-430.0,0.00017252,2]
[363614099,1748787038413,-430.0,0.00017252,2]
[363614100,1748787038422,-394.61,0.00017252,2]
[363614101,1748787038432,-430.0,0.00017252,2]
[363614102,1748787038441,-430.0,0.00017253,2]
[363614103,1748787038451,-430.0,0.00017253,2]
[363614104,1748787038466,-430.0,0.00017253,2]
[363614105,1748787038475,-222.05,0.00017253,2]
[363614106,1748787038485,-430.0,0.00017253,2]
[363614107,1748787038494,-430.0,0.00017253,2]
[363614108,1748787038503,-430.0,0.00017253,2]
[363614109,1748787038513,-430.0,0.00017253,2]
[363614110,1748787038522,-489.56,0.00017253,2]
[363614111,1748787038532,-430.0,0.00017253,2]
[363614112,1748787038541,-430.0,0.00017253,2]
[363614113,1748787038551,-430.0,0.00017253,2]
[363614114,1748787038561,-531.57,0.00017254,2]
[363614115,1748787038570,-430.0,0.00017526,2]
[363614116,1748787038580,-430.0,0.00017526,2]
[363614117,1748787038590,-430.0,0.00017526,2]
[363614118,1748787038600,-430.0,0.00017526,2]
[363614119,1748787038609,-430.0,0.00017527,2]
[363614120,1748787038620,-430.0,0.00017527,2]
[363614121,1748787038631,-425.02,0.00017527,2]
[363614122,1748787038641,-430.0,0.00017527,2]
[363614123,1748787038651,-430.0,0.00017527,2]
[363614124,1748787038661,-430.0,0.00017527,2]
[363614125,1748787038671,-430.0,0.00017527,2]
[363614126,1748787038681,-489.56,0.00017527,2]
[363614127,1748787038690,-430.0,0.00017527,2]
[363614128,1748787038699,-531.57,0.00017528,2]
[363614129,1748787038709,-430.0,0.000178,2]
[363614130,1748787038719,-430.0,0.000178,2]
[363614131,1748787038730,-430.0,0.000178,2]
[363614132,1748787038740,-430.0,0.000178,2]
[363614133,1748787038752,-430.0,0.00017801,2]
[363614134,1748787038762,-430.0,0.00017801,2]
[363614135,1748787038775,-430.0,0.00017801,2]
[363614136,1748787038784,-430.0,0.00017801,2]
[363614137,1748787038794,-430.0,0.00017801,2]
[363614138,1748787038803,-430.0,0.00017801,2]
[363614139,1748787038813,-489.56,0.00017801,2]
[363614140,1748787038823,-531.57,0.00017802,2]
[363614141,1748787038832,-430.0,0.00018074,2]
[363614142,1748787038844,-430.0,0.00018074,2]
[363614143,1748787038854,-332.91853843,0.00018074,2]
[363614144,1748787038864,-430.0,0.00018074,2]
[363614145,1748787038874,-430.0,0.00018075,2]
[363614146,1748787038883,-430.0,0.00018075,2]
[363614147,1748787038894,-267.99,0.00018075,2]
[363614148,1748787038904,-430.0,0.00018075,2]
[363614149,1748787039100,-430.0,0.00018075,2]
[363614150,1748787039111,-430.0,0.00018075,2]
[363614151,1748787039121,-489.56,0.00018075,2]
[363614152,1748787039132,-531.57,0.00018076,2]
[363614153,1748787039142,-352.0,0.00018251,2]
[363614154,1748787039153,-430.0,0.00018348,2]
[363614155,1748787039163,-430.0,0.00018348,2]
[363614156,1748787039173,-430.0,0.00018348,2]
[363614157,1748787039184,-430.0,0.00018349,2]
[363614158,1748787039194,-430.0,0.00018349,2]
[363614159,1748787039203,-430.0,0.00018349,2]
[363614160,1748787039213,-430.0,0.00018349,2]
[363614161,1748787039223,-430.0,0.00018349,2]
[363614162,1748787039233,-489.56,0.00018349,2]
[363614163,1748787039243,-531.57,0.0001835,2]
[363614164,1748787039253,-430.0,0.00018622,2]
[363614166,1748787039263,-430.0,0.00018622,2]
[363614167,1748787039273,-430.0,0.00018622,2]
[363614168,1748787039283,-271.87,0.00018623,2]
[363614169,1748787039293,-430.0,0.00018623,2]
[363614170,1748787039302,-302.41,0.00018623,2]
[363614171,1748787039312,-430.0,0.00018623,2]
[363614172,1748787039324,-430.0,0.00018623,2]
[363614173,1748787039334,-489.56,0.00018623,2]
[363614174,1748787039343,-531.57,0.00018624,2]
[363614175,1748787039355,-150.0,0.000188,2]
[363614176,1748787039365,-500.0,0.0001887,2]
[363614177,1748787039375,-430.0,0.00018896,2]
[363614178,1748787039385,-430.0,0.00018896,2]
[363614179,1748787039395,-430.0,0.00018896,2]
[363614180,1748787039404,-184.94,0.00018897,2]
[363614181,1748787039414,-430.0,0.00018897,2]
[363614182,1748787039424,-430.0,0.00018897,2]
[363614183,1748787039433,-489.56,0.00018897,2]
[363614184,1748787039444,-531.57,0.00018898,2]
[363614185,1748787039455,-150.0,0.000189,2]
[363614186,1748787039465,-430.0,0.0001917,2]
[363614187,1748787039475,-430.0,0.0001917,2]
[363614188,1748787039484,-283.43295285,0.0001917,2]
[363614189,1748787039494,-430.0,0.00019171,2]
[363614190,1748787039503,-430.0,0.00019171,2]
[363614191,1748787039513,-489.56,0.00019171,2]
[363614192,1748787039523,-531.57,0.00019172,2]
[363614193,1748787039533,-500.362092,0.00019318,2]
[363614194,1748787039543,-344.58229376,0.00019318,2]
[363614195,1748787039552,-430.0,0.00019444,2]
[363614196,1748787039562,-430.0,0.00019444,2]
[363614197,1748787039571,-430.0,0.00019445,2]
[363614198,1748787039583,-430.0,0.00019445,2]
[363614199,1748787039592,-489.56,0.00019445,2]
[363614200,1748787039602,-531.57,0.00019446,2]
[363614201,1748787039611,-159.436,0.00019559,2]
[363614202,1748787039621,-430.0,0.00019718,2]
[363614203,1748787039630,-430.0,0.00019718,2]
[363614204,1748787039640,-430.0,0.00019719,2]
[363614205,1748787039652,-430.0,0.00019719,2]
[363614206,1748787039661,-489.56,0.00019719,2]
[363614207,1748787039671,-531.57,0.0001972,2]
[363614208,1748787039681,-160.0,0.00019788,2]
[363614209,1748787039690,-423.51412927,0.00019788,2]
[363614210,1748787039699,-160.0,0.00019788,2]
[363614211,1748787039708,-229.3709046,0.00019788,2]
[363614212,1748787039718,-842.5625,0.00019788,2]
[363614213,1748787039727,-217.72,0.00019992,2]
[363614214,1748787039738,-430.0,0.00019992,2]
[363614215,1748787039747,-430.0,0.00019993,2]
[363614216,1748787039758,-430.0,0.00019993,2]
[363614217,1748787039768,-489.56,0.00019993,2]
[363614218,1748787039780,-531.57,0.00019994,2]
[363614219,1748787039790,-150.14129637,0.0002,21]
[363614220,1748787039799,-500.0,0.00020067,2]
[363614221,1748787039810,-307.518744,0.00020187,2]
[363614222,1748787039820,-430.0,0.00020266,2]
[363614223,1748787039829,-439.19978705,0.00020267,2]
[363614224,1748787039839,-430.0,0.00020267,2]
[363614225,1748787039848,-489.56,0.00020267,2]
[363614227,1748787039859,-531.57,0.00020268,2]
[363614229,1748787039869,-430.0,0.0002054,2]
[363614231,1748787039879,-179.23,0.00020541,2]